bitfinex/quotes_SOLUSD_20250301
["timestamp","ask_amount","ask_price","bid_price","bid_amount"]
[1740794739385,20.0,149.4,149.33,201.59452848]
[1740794740385,18.7428,149.39,149.33,201.59452848]
[1740794743088,20.0,149.36,149.33,201.59452848]
[1740794743289,20.0,149.36,149.32,0.03]
[1740794743707,32.5691,149.36,149.32,0.03]
[1740794743889,39.2882,149.36,149.32,0.03]
[1740794744612,39.2882,149.36,149.31,0.03]
[1740794744815,18.7478,149.35,149.31,0.03]
[1740794745202,20.0,149.32,149.28,3.92900505]
[1740794745706,45.5305,149.35,149.28,3.92900505]
[1740794745902,45.5305,149.35,149.28,67.52353353]
[1740794746509,47.5305,149.35,149.28,67.52353353]
[1740794747395,18.7478,149.35,149.28,67.52353353]
[1740794747802,18.7478,149.35,149.29,3.92900505]
[1740794748611,18.7478,149.35,149.31,0.03]
[1740794750012,18.7478,149.35,149.29,3.92900505]
[1740794751317,99.4478,149.35,149.29,3.92900505]
[1740794753817,5.3565,149.35,149.29,67.52353353]
[1740794753996,5.3565,149.35,149.3,18.64964886]
[1740794754700,5.3565,149.35,149.3,3.92900505]
[1740794755107,18.7478,149.35,149.3,3.92900505]
[1740794755706,5.3565,149.35,149.3,22.57865391]
[1740794755901,5.3565,149.35,149.31,18.64964886]
[1740794756100,5.3565,149.35,149.31,25.88964886]
[1740794757117,5.3551,149.39,149.31,227.48417734]
[1740794757620,5.3551,149.39,149.32,3.92900505]
[1740794758412,5.3551,149.39,149.32,205.52353353]
[1740794758802,5.3551,149.39,149.34,18.64964886]
[1740794759123,5.3551,149.39,149.34,82.24417734]
[1740794760116,5.3551,149.39,149.35,3.92900505]
[1740794760612,18.7428,149.39,149.35,3.92900505]
[1740794761213,18.7428,149.39,149.34,63.59452848]
[1740794761822,20.0,149.36,149.31,70.83452848]
[1740794763035,13.3907,149.36,149.32,3.92762416]
[1740794764427,18.7468,149.36,149.32,3.92762416]
[1740794764722,38.7468,149.36,149.32,3.92762416]
[1740794765515,38.7468,149.36,149.31,7.24]
[1740794766412,5.3554,149.38,149.32,18.64964886]
[1740794767030,5.4182,149.39,149.32,220.24417734]
[1740794767914,5.4182,149.39,149.34,18.64964886]
[1740794768327,0.063,149.39,149.34,18.64964886]
[1740794769034,0.063,149.39,149.35,3.92762416]
[1740794769223,0.063,149.39,149.35,67.52215264]
[1740794770306,0.063,149.39,149.36,3.92762416]
[1740794772618,0.063,149.39,149.32,3.92762416]
[1740794772817,0.063,149.39,149.32,67.52215264]
[1740794774216,0.063,149.39,149.33,3.92762416]
[1740794777535,0.063,149.39,149.33,67.52215264]
[1740794777735,20.0,149.36,149.33,3.92762416]
[1740794778033,80.7,149.38,149.33,3.92762416]
[1740794778034,20.0,149.35,149.33,3.92762416]
[1740794778453,5.3558,149.37,149.33,3.92762416]
[1740794778611,18.7453,149.37,149.33,3.92762416]
[1740794779643,18.7453,149.37,149.33,63.59452848]
[1740794780638,18.8058,149.39,149.33,63.59452848]
[1740794781239,18.8058,149.39,149.34,3.92762416]
[1740794784943,18.8058,149.39,149.35,3.92762416]
[1740794785142,20.0,149.36,149.35,3.92762416]
[1740794785620,99.5058,149.39,149.35,3.92762416]
[1740794786242,20.0,149.36,149.35,3.92762416]
[1740794786613,20.0,149.36,149.32,3.92762416]
[1740794787352,20.0,149.33,149.32,3.92762416]
[1740794788120,5.3583,149.3,149.26,0.5838264]
[1740794788415,5.3583,149.3,149.26,64.17835488]
[1740794790160,13.3951,149.31,149.26,64.17835488]
[1740794791343,5.3576,149.32,149.27,18.64964886]
[1740794791932,18.0773,149.33,149.27,220.24417734]
[1740794792131,5.3573,149.33,149.27,220.24417734]
[1740794793350,13.3915,149.35,149.27,220.24417734]
[1740794794935,94.0915,149.35,149.27,63.59452848]
[1740794795147,20.0,149.32,149.27,63.59452848]
[1740794795539,18.7528,149.31,149.26,0.5838264]
[1740794797328,19.478,149.3,149.26,0.5838264]
[1740794797949,5.3586,149.29,149.26,0.5838264]
[1740794798331,19.478,149.3,149.26,64.17835488]
[1740794798652,0.063,149.31,149.26,64.17835488]
[1740794798653,5.421,149.31,149.26,64.17835488]
[1740794798853,0.063,149.31,149.27,18.64964886]
[1740794799741,5.4209,149.31,149.27,18.64964886]
[1740794800147,0.063,149.31,149.27,18.64964886]
[1740794802460,0.063,149.31,149.27,82.24417734]
[1740794802637,0.063,149.31,149.29,18.64964886]
[1740794802941,0.063,149.31,149.29,221.65024646]
[1740794803142,0.063,149.31,149.29,220.24417734]
[1740794805730,0.063,149.31,149.29,82.24417734]
[1740794808043,0.063,149.31,149.29,220.24417734]
[1740794815374,0.063,149.31,149.29,89.46417734]
[1740794816565,19.3707,149.31,149.29,63.59452848]
[1740794816751,19.3707,149.31,149.28,0.03]
[1740794817741,5.3583,149.3,149.28,0.03]
[1740794817950,24.7287,149.31,149.28,0.03]
[1740794818149,0.063,149.31,149.28,201.62452848]
[1740794819375,0.063,149.31,149.29,18.64964886]
[1740794819748,0.063,149.31,149.29,220.24417734]
[1740794819964,0.063,149.31,149.29,229.60277734]
[1740794820150,0.063,149.31,149.29,247.76277734]
[1740794820364,0.063,149.31,149.3,22.0554897]
[1740794820762,0.063,149.31,149.3,42.2154897]
[1740794820973,0.063,149.31,149.3,44.2154897]
[1740794821371,0.063,149.39,149.3,44.2154897]
[1740794821372,0.063,149.39,149.31,2.0]
[1740794821575,0.063,149.39,149.36,18.64964886]
[1740794821758,0.063,149.39,149.36,220.24417734]
[1740794825177,0.063,149.44,149.41,20.0]
[1740794825476,0.063,149.44,149.42,7.22]
[1740794826065,0.063,149.44,149.43,18.64964886]
[1740794827471,0.063,149.44,149.41,63.59452848]
[1740794827656,0.063,149.44,149.42,7.22]
[1740794828074,0.063,149.44,149.43,18.64964886]
[1740794830876,0.063,149.44,149.43,63.59452848]
[1740794832170,0.063,149.44,149.43,82.24417734]
[1740794834379,0.063,149.44,149.36,7.3561]
[1740794834380,19.1476,149.41,149.32,150.87577485]
[1740794834580,2.0,149.38,149.32,12.87577485]
[1740794834792,32.7899,149.36,149.32,24.55400725]
[1740794834999,20.0,149.33,149.32,11.6782324]
[1740794835680,6.3577,149.35,149.29,51.38901573]
[1740794835681,20.0,149.32,149.29,51.38901573]
[1740794835874,6.3577,149.35,149.29,114.98354421]
[1740794836073,6.3577,149.35,149.29,252.98354421]
[1740794836586,5.3569,149.34,149.3,18.64964886]
[1740794836767,5.3569,149.34,149.3,25.84964886]
[1740794837170,5.3569,149.34,149.3,7.2]
[1740794839084,18.7491,149.34,149.3,7.2]
[1740794839976,18.7491,149.34,149.3,70.79452848]
[1740794841291,45.5336,149.34,149.28,201.62452848]
[1740794843904,45.5336,149.34,149.28,63.62452848]
[1740794844202,5.3583,149.3,149.28,63.62452848]
[1740794845869,5.3572,149.33,149.29,18.64964886]
[1740794846174,5.3569,149.34,149.29,220.24417734]
[1740794848706,5.3565,149.35,149.29,220.24417734]
[1740794849202,5.3562,149.36,149.29,220.24417734]
[1740794849502,5.4189,149.37,149.29,220.24417734]
[1740794850603,0.063,149.37,149.29,220.24417734]
[1740794854482,0.063,149.37,149.29,227.44417734]
[1740794855481,0.063,149.37,149.33,18.64964886]
[1740794855793,0.063,149.37,149.36,58.80964886]
[1740794856012,0.063,149.37,149.36,248.84932458]
[1740794856197,0.063,149.37,149.36,247.44417734]
[1740794856586,0.063,149.37,149.36,227.44417734]
[1740794856789,0.063,149.37,149.36,220.24417734]
[1740794857104,0.063,149.37,149.36,227.44417734]
[1740794857887,0.063,149.44,149.39,20.0]
[1740794858095,0.063,149.44,149.4,44.17719913]
[1740794858301,0.063,149.44,149.42,18.64964886]
[1740794858489,0.063,149.44,149.43,25.84964886]
[1740794861996,0.063,149.44,149.43,18.64964886]
[1740794862196,0.063,149.44,149.43,25.84964886]
[1740794863603,0.063,149.44,149.43,227.44417734]
[1740794869806,0.063,149.44,149.43,201.59452848]
[1740794870808,0.063,149.44,149.43,9.07212848]
[1740794871026,0.063,149.44,149.43,2.848e-05]
[1740794872009,5.4163,149.44,149.43,2.848e-05]
[1740794874196,0.063,149.44,149.43,99.64967734]
[1740794875004,0.063,149.44,149.43,81.00002848]
[1740794876515,20.063,149.44,149.43,81.00002848]
[1740794877496,25.4163,149.44,149.43,81.00002848]
[1740794877896,25.4163,149.44,149.43,2.848e-05]
[1740794880692,5.4163,149.44,149.43,81.00002848]
[1740794880898,0.063,149.44,149.43,81.00002848]
[1740794881118,5.4163,149.44,149.43,81.00002848]
[1740794882102,0.063,149.44,149.43,81.00002848]
[1740794882305,0.063,149.44,149.43,99.64967734]
[1740794883197,0.063,149.44,149.43,106.84967734]
[1740794883716,0.063,149.44,149.43,244.84967734]
[1740794884217,0.063,149.45,149.44,4.0]
[1740794884393,0.063,149.45,149.44,237.64964886]
[1740794886414,0.063,149.45,149.44,259.80964886]
[1740794886621,0.063,149.45,149.44,261.80964886]
[1740794887115,0.063,149.45,149.44,259.80964886]
[1740794887714,0.063,149.45,149.44,237.64964886]
[1740794889018,0.063,149.45,149.44,99.64964886]
[1740794889609,0.063,149.45,149.44,81.0]
[1740794890504,0.063,149.45,149.43,145.20002848]
[1740794890505,2.0,149.37,149.3,81.0]
[1740794890823,2.0,149.3,149.26,0.5838264]
[1740794891120,2.0,149.3,149.23,46.44437046]
[1740794891121,28.5482,149.28,149.23,46.44437046]
[1740794891330,28.5482,149.28,149.23,44.35157114]
[1740794891516,22.0,149.24,149.22,7.114e-05]
[1740794891820,2.0,149.24,149.14,150.94300341]
[1740794892011,22.0,149.23,149.11,6.77108451]
[1740794892197,24.0,149.23,149.11,6.77108451]
[1740794892397,20.0,149.18,149.11,6.77108451]
[1740794892602,20.0,149.18,149.11,86.24866537]
[1740794892904,2.0,149.2,149.11,157.75003623]
[1740794893221,33.23659035,149.19,149.13,18.64964886]
[1740794893605,35.23659035,149.19,149.13,18.64964886]
[1740794893819,33.20012187,149.17,149.13,18.64964886]
[1740794894018,35.20012187,149.17,149.13,95.39968509]
[1740794894223,2.0,149.16,149.11,157.75003623]
[1740794894726,2.0,149.16,149.12,18.64964886]
[1740794894902,2.0,149.14,149.12,18.64964886]
[1740794895228,2.0,149.13,149.1,83.95003623]
[1740794895411,2.0,149.12,149.11,18.64964886]
[1740794895922,2.0,149.12,149.07,18.64964886]
[1740794896116,2.0,149.12,149.07,102.59968509]
[1740794896824,2.0,149.1,149.07,102.59968509]
[1740794897018,2.0,149.1,149.07,95.39968509]
[1740794897223,2.0,149.11,149.07,176.39968509]
[1740794897419,2.0,149.11,149.07,174.89968509]
[1740794898630,2.0,149.1,149.07,174.89968509]
[1740794899127,2.0,149.08,149.07,174.89968509]
[1740794899334,2.0,149.08,149.03,7.2]
[1740794899626,2.0,149.1,149.04,18.64964886]
[1740794899805,2.0,149.1,149.04,176.39968509]
[1740794900530,2.0,149.11,149.04,176.39968509]
[1740794900828,2.0,149.1,149.04,176.39968509]
[1740794901034,2.0,149.12,149.04,176.39968509]
[1740794901627,2.0,149.12,149.06,18.64964886]
[1740794902022,10.40526798,149.13,149.06,18.64964886]
[1740794902023,10.40526798,149.13,149.07,1.40810565]
[1740794902209,2.0,149.14,149.1,18.64964886]
[1740794902403,2.0,149.14,149.12,18.64964886]
[1740794902608,2.0,149.13,149.12,81.0]
[1740794903733,2.0,149.08,149.02,97.90940137]
[1740794903912,4.0,149.07,149.02,97.90940137]
[1740794904107,2.0,149.07,149.02,97.90940137]
[1740794905124,2.0,149.07,149.03,18.64964886]
[1740794905432,4.0,149.07,149.03,18.64964886]
[1740794905921,2.0,149.08,149.03,18.64964886]
[1740794906835,2.0,149.07,149.03,18.14964886]
[1740794907335,2.0,149.07,149.03,18.17964886]
[1740794908231,2.0,149.07,149.03,116.08905023]
[1740794908436,2.0,149.08,149.03,116.08905023]
[1740794908613,2.0,149.07,149.03,116.08905023]
[1740794908813,4.0,149.07,149.03,116.08905023]
[1740794910337,4.0,149.05,149.03,81.03]
[1740794910713,2.0,149.05,149.03,81.03]
[1740794911615,2.0,149.08,149.04,18.64964886]
[1740794912137,2.0,149.07,149.04,18.64964886]
[1740794912435,2.0,149.08,149.04,116.55905023]
[1740794913034,2.0,149.07,149.04,116.55905023]
[1740794914537,2.0,149.1,149.04,116.55905023]
[1740794914838,2.0,149.11,149.04,121.92665023]
[1740794915039,6.2235,149.15,149.04,121.92665023]
[1740794915040,4.0,149.13,149.06,18.64964886]
[1740794915347,4.0,149.13,149.07,7.2]
[1740794916121,2.0,149.12,149.07,7.2]
[1740794916320,4.0,149.13,149.07,105.10940137]
[1740794916631,4.0,149.13,149.08,18.64964886]
[1740794918520,4.0,149.11,149.07,105.10940137]
[1740794919039,4.0,149.11,149.08,18.64964886]
[1740794919234,2.0,149.12,149.08,18.64964886]
[1740794919429,2.0,149.1,149.07,97.90940137]
[1740794919737,2.0,149.13,149.08,18.64964886]
[1740794920124,4.0,149.12,149.08,116.55905023]
[1740794920727,5.3644,149.13,149.04,97.90940137]
[1740794920728,4.0,149.09,149.04,97.90940137]
[1740794921022,2.0,149.08,149.04,97.90940137]
[1740794921238,2.0,149.08,149.05,18.64964886]
[1740794922251,2.0,149.1,149.05,18.64964886]
[1740794922452,4.0,149.11,149.05,18.64964886]
[1740794922943,2.0,149.1,149.05,18.64964886]
[1740794923544,2.0,149.1,149.04,97.90940137]
[1740794923845,4.0,149.11,149.05,18.64964886]
[1740794924141,2.0,149.13,149.05,138.1273242]
[1740794924343,2.0,149.14,149.08,20.0]
[1740794924637,8.2235,149.15,149.09,25.84964886]
[1740794924819,2.0,149.15,149.09,25.84964886]
[1740794925828,0.063,149.16,149.11,18.64964886]
[1740794926154,0.063,149.16,149.14,20.0]
[1740794926335,0.063,149.16,149.15,7.2]
[1740794927444,0.063,149.16,149.15,25.84964886]
[1740794928845,0.063,149.16,149.12,5.3646]
[1740794929050,4.0,149.15,149.13,81.0]
[1740794929241,2.0,149.14,149.09,97.90940137]
[1740794929544,2.0,149.14,149.09,81.0]
[1740794929750,4.0,149.14,149.09,81.0]
[1740794929948,2.0,149.14,149.1,18.64964886]
[1740794930139,0.063,149.16,149.12,18.64964886]
[1740794930351,0.063,149.16,149.12,116.55905023]
[1740794930544,0.063,149.16,149.14,18.64964886]
[1740794931251,0.063,149.16,149.15,40.21698491]
[1740794931454,0.063,149.16,149.15,138.12638628]
[1740794932033,2.0,149.25,149.18,40.16]
[1740794932233,2.063,149.28,149.2,38.80964886]
[1740794932447,0.063,149.28,149.24,18.64964886]
[1740794932659,0.063,149.28,149.24,116.55905023]
[1740794933246,0.063,149.28,149.25,7.18]
[1740794933565,0.063,149.28,149.26,18.64964886]
[1740794934856,2.063,149.28,149.26,18.64964886]
[1740794937343,2.063,149.28,149.24,97.90940137]
[1740794937344,4.0,149.26,149.24,81.0]
[1740794937860,4.0,149.24,149.21,97.90940137]
[1740794938067,2.0,149.23,149.21,81.0]
[1740794938270,4.0,149.23,149.21,81.0]
[1740794938578,2.0,149.21,149.2,81.0]
[1740794938874,4.0,149.22,149.2,81.0]
[1740794939046,2.0,149.23,149.21,18.64964886]
[1740794940385,4.0,149.23,149.21,18.64964886]
[1740794940889,5.3605,149.24,149.2,81.0]
[1740794940890,2.0,149.21,149.2,81.0]
[1740794941097,4.0,149.21,149.2,81.0]
[1740794941600,9.3615,149.21,149.2,81.0]
[1740794942294,2.0,149.18,149.17,81.0]
[1740794942483,4.0,149.18,149.17,81.0]
[1740794942992,2.0,149.18,149.17,81.0]
[1740794943300,2.0,149.22,149.17,99.64964886]
[1740794943505,2.0,149.22,149.18,18.64964886]
[1740794943668,4.0,149.26,149.18,20.05672023]
[1740794943870,4.0,149.26,149.18,117.9661216]
[1740794944074,4.0,149.27,149.2,18.64964886]
[1740794944291,4.0,149.27,149.19,20.16]
[1740794944292,2.063,149.26,149.22,18.64964886]
[1740794944495,4.063,149.26,149.22,116.55905023]
[1740794944791,4.0,149.25,149.22,116.55905023]
[1740794944996,0.063,149.26,149.22,116.55905023]
[1740794946301,0.063,149.26,149.22,142.08005023]
[1740794946881,0.063,149.26,149.22,136.71905023]
[1740794947100,0.063,149.26,149.22,121.92015023]
[1740794947684,0.063,149.26,149.25,38.64964886]
[1740794947987,0.063,149.26,149.25,116.55905023]
[1740794948194,0.063,149.28,149.27,38.80964886]
[1740794948493,2.0,149.4,149.34,20.0]
[1740794948802,2.0,149.4,149.36,18.64964886]
[1740794949097,0.063,149.41,149.36,116.55905023]
[1740794949297,0.063,149.41,149.38,18.64964886]
[1740794949475,0.063,149.41,149.38,116.55905023]
[1740794950680,4.0,149.4,149.38,116.55905023]
[1740794950872,2.0,149.39,149.38,116.55905023]
[1740794951075,4.0,149.39,149.38,81.0]
[1740794952696,2.0,149.36,149.35,7.18]
[1740794952903,4.0,149.36,149.31,7.18]
[1740794953082,4.0,149.36,149.32,18.64964886]
[1740794953282,2.0,149.35,149.32,18.64964886]
[1740794953478,4.0,149.35,149.32,18.64964886]
[1740794953677,4.0,149.33,149.31,81.0]
[1740794953882,2.0,149.32,149.31,81.0]
[1740794954097,2.0,149.32,149.31,68.54118512]
[1740794954396,2.0,149.32,149.31,87.19083398]
[1740794956282,4.0,149.36,149.32,18.64964886]
[1740794956486,4.0,149.36,149.32,104.10023535]
[1740794956700,2.0,149.35,149.32,104.10023535]
[1740794957496,4.0,149.33,149.32,68.54118512]
[1740794957894,4.0,149.31,149.3,68.54118512]
[1740794958204,9.3591,149.28,149.26,85.45058649]
[1740794958382,2.0,149.28,149.26,68.54118512]
[1740794958581,2.0,149.3,149.27,18.64964886]
[1740794958993,4.0,149.32,149.27,104.10023535]
[1740794959388,4.0,149.3,149.27,104.10023535]
[1740794959691,4.0,149.28,149.27,68.54118512]
[1740794961504,9.359,149.28,149.27,68.54118512]
[1740794961900,9.359,149.28,149.23,87.19083398]
[1740794962105,2.0,149.26,149.23,87.19083398]
[1740794962295,4.0,149.28,149.23,87.19083398]
[1740794962490,2.0,149.28,149.23,104.10023535]
[1740794962693,2.0,149.27,149.23,104.10023535]
[1740794963394,2.0,149.26,149.23,104.10023535]
[1740794963916,2.0,149.28,149.23,104.10023535]
[1740794963917,2.0,149.28,149.23,125.66686397]
[1740794964212,2.0,149.31,149.23,125.66686397]
[1740794964414,2.0,149.32,149.27,18.64964886]
[1740794964619,2.0,149.32,149.27,104.10023535]
[1740794964797,14.24,149.34,149.29,18.64964886]
[1740794965004,12.24,149.34,149.29,18.64964886]
[1740794965312,2.0,149.34,149.29,104.10023535]
[1740794965911,6.671,149.35,149.29,104.10023535]
[1740794965912,8.671,149.35,149.29,104.10023535]
[1740794966212,2.0,149.34,149.29,104.10023535]
[1740794966692,4.0,149.34,149.29,104.10023535]
[1740794967033,2.0,149.34,149.29,104.10023535]
[1740794968225,4.0,149.35,149.29,104.10023535]
[1740794968531,2.0,149.34,149.29,104.10023535]
[1740794968818,4.0,149.34,149.29,104.10023535]
[1740794969033,2.0,149.34,149.29,104.10023535]
[1740794969518,4.0,149.34,149.29,104.10023535]
[1740794970220,2.0,149.38,149.3,20.16]
[1740794970410,2.0,149.35,149.3,85.45058649]
[1740794970611,4.0,149.35,149.3,85.45058649]
[1740794970824,2.0,149.34,149.31,18.64964886]
[1740794971200,2.0,149.35,149.31,18.64964886]
[1740794971401,2.0,149.34,149.31,18.64964886]
[1740794973524,2.0,149.34,149.31,104.10023535]
[1740794973723,5.4175,149.41,149.31,104.10023535]
[1740794973724,2.0,149.37,149.31,109.45803535]
[1740794973924,2.0,149.38,149.31,109.45803535]
[1740794974130,4.0,149.38,149.31,109.45803535]
[1740794974431,0.063,149.41,149.37,18.64964886]
[1740794974432,2.0,149.4,149.37,18.64964886]
[1740794974727,2.0,149.4,149.37,111.26023535]
[1740794975227,4.0,149.4,149.37,111.26023535]
[1740794975811,2.0,149.4,149.37,111.26023535]
[1740794977203,4.0,149.4,149.37,111.26023535]
[1740794978044,2.0,149.4,149.37,111.26023535]
[1740794978732,2.0,149.39,149.37,111.26023535]
[1740794979037,4.0,149.4,149.37,111.26023535]
[1740794979201,2.0,149.4,149.37,111.26023535]
[1740794979397,2.063,149.41,149.37,111.26023535]
[1740794980514,4.063,149.41,149.37,111.26023535]
[1740794980727,2.0,149.39,149.37,111.26023535]
[1740794980931,4.0,149.4,149.37,111.26023535]
[1740794981142,0.063,149.41,149.37,111.26023535]
[1740794981143,2.063,149.41,149.37,111.26023535]
[1740794981322,0.063,149.4,149.37,111.26023535]
[1740794981518,2.063,149.4,149.37,111.26023535]
[1740794981728,0.063,149.4,149.37,111.26023535]
[1740794982431,2.063,149.4,149.37,111.26023535]
[1740794982920,4.0,149.38,149.37,111.26023535]
[1740794983227,4.0,149.38,149.37,68.54118512]
[1740794984804,24.0,149.39,149.37,68.54118512]
[1740794985001,24.0,149.39,149.28,20.16]
[1740794985002,4.0,149.34,149.31,68.54118512]
[1740794985205,2.0,149.36,149.31,85.45058649]
[1740794985414,2.0,149.36,149.32,18.64964886]
[1740794985614,2.0,149.36,149.34,18.64964886]
[1740794985808,2.0,149.36,149.34,225.19083398]
[1740794986017,2.0,149.39,149.34,225.19083398]
[1740794986212,4.063,149.4,149.34,225.19083398]
[1740794986610,2.0,149.38,149.34,225.19083398]
[1740794986812,4.063,149.4,149.34,225.19083398]
[1740794987013,4.0,149.39,149.34,225.19083398]
[1740794987211,4.063,149.4,149.34,225.19083398]
[1740794987406,4.063,149.4,149.34,230.54763398]
[1740794988724,4.063,149.4,149.35,18.64964886]
[1740794988899,2.0,149.39,149.35,18.64964886]
[1740794989221,0.063,149.4,149.36,1.40544582]
[1740794992241,0.063,149.4,149.36,6.76154582]
[1740794992940,0.063,149.4,149.36,1.40544582]
[1740794993235,0.063,149.39,149.36,1.40544582]
[1740794993422,0.063,149.39,149.37,18.64964886]
[1740794993731,0.063,149.39,149.37,225.19083398]
[1740794998546,0.063,149.39,149.38,18.64964886]
[1740794999153,0.063,149.39,149.38,21.96630903]
[1740794999742,0.063,149.39,149.38,260.75764527]
[1740794999947,0.063,149.45,149.43,18.64964886]
[1740795000250,0.063,149.45,149.43,253.9154968]
[1740795000548,0.063,149.45,149.43,252.51083398]
[1740795000742,0.0001,149.44,149.43,252.51083398]
[1740795000947,0.063,149.46,149.45,38.80964886]
[1740795001254,0.063,149.46,149.45,40.2139422]
[1740795001754,0.063,149.46,149.45,225.19073398]
[1740795001958,2.063,149.46,149.45,87.19073398]
[1740795002250,4.063,149.46,149.45,87.19073398]
[1740795002753,17.2199,149.46,149.45,68.54108512]
[1740795004953,17.2199,149.46,149.4,18.64964886]
[1740795005143,17.2199,149.46,149.4,225.19073398]
[1740795005443,2.0,149.42,149.4,225.19073398]
[1740795005836,4.0,149.41,149.4,68.54108512]
[1740795006156,2.0,149.4,149.36,206.54108512]
[1740795006315,2.0,149.4,149.37,18.64964886]
[1740795007147,2.0,149.43,149.37,226.59607355]
[1740795007444,4.0,149.43,149.37,225.19073398]
[1740795007757,2.0,149.42,149.37,225.19073398]
[1740795008653,2.0,149.42,149.37,209.86065216]
[1740795009145,2.0,149.45,149.4,18.64964886]
[1740795009355,15.2199,149.46,149.41,7.14]
[1740795009646,2.0,149.44,149.41,7.14]
[1740795009825,4.0,149.44,149.41,7.14]
[1740795010026,2.0,149.43,149.41,7.14]
[1740795010228,4.0,149.42,149.41,213.68108512]
[1740795010651,4.0,149.42,149.41,232.33073398]
[1740795010834,2.0,149.42,149.41,232.33073398]
[1740795011037,4.0,149.42,149.41,232.33073398]
[1740795011229,2.0,149.45,149.42,18.64964886]
[1740795011434,15.2199,149.46,149.42,225.19073398]
[1740795011834,17.2199,149.46,149.42,225.19073398]
[1740795012442,15.2199,149.46,149.42,225.19073398]
[1740795012763,0.063,149.46,149.42,225.19073398]
[1740795013429,2.063,149.46,149.42,225.19073398]
[1740795013630,4.063,149.46,149.42,225.19073398]
[1740795013957,2.0,149.45,149.42,225.19073398]
[1740795014336,2.063,149.46,149.42,225.19073398]
[1740795014543,2.0,149.45,149.42,225.19073398]
[1740795015039,4.0,149.44,149.42,225.19073398]
[1740795015247,4.0,149.43,149.42,68.54108512]
[1740795016352,9.3536,149.43,149.42,68.54108512]
[1740795016746,4.0,149.43,149.42,68.54108512]
[1740795017666,16.2475,149.42,149.41,0.03]
[1740795018672,21.6015,149.42,149.41,0.03]
[1740795022062,16.2475,149.42,149.41,0.03]
[1740795022244,4.0,149.42,149.41,0.03]
[1740795022443,4.0,149.43,149.41,68.57108512]
[1740795022744,2.0,149.43,149.41,87.22073398]
[1740795023057,2.0,149.43,149.42,18.64964886]
[1740795023265,2.0,149.44,149.42,18.64964886]
[1740795023963,0.063,149.45,149.42,225.19073398]
[1740795024855,2.063,149.45,149.42,225.19073398]
[1740795025652,2.0,149.44,149.42,225.19073398]
[1740795026066,4.063,149.45,149.42,225.19073398]
[1740795026266,2.0,149.44,149.42,225.19073398]
[1740795026458,0.063,149.45,149.42,225.19073398]
[1740795026669,4.063,149.45,149.42,225.19073398]
[1740795026859,0.063,149.45,149.42,225.19073398]
[1740795027171,2.063,149.45,149.42,225.19073398]
[1740795027375,4.063,149.45,149.42,225.19073398]
[1740795028466,2.063,149.45,149.42,225.19073398]
[1740795028675,0.063,149.46,149.45,38.80964886]
[1740795028966,0.063,149.5,149.49,24.00114886]
[1740795029145,0.063,149.5,149.49,259.24631004]
[1740795029345,0.063,149.5,149.49,257.84223398]
[1740795029773,0.063,149.5,149.49,232.33073398]
[1740795030963,0.063,149.5,149.49,257.82223398]
[1740795031182,0.063,149.52,149.51,58.78964886]
[1740795031355,0.063,149.52,149.51,266.7343518]
[1740795031688,0.063,149.54,149.53,38.78964886]
[1740795031851,0.063,149.54,149.53,246.73413697]
[1740795032052,0.063,149.54,149.53,245.33073398]
[1740795033184,0.063,149.54,149.53,250.68073398]
[1740795034077,0.063,149.55,149.54,38.78964886]